[Event "Live Chess"]
[Site "Chess.com"]
[Date "2023.05.21"]
[Round "-"]
[White "Vedant-1411"]
[Black "HadesLearmonth"]
[Result "0-1"]
[WhiteElo "863"]
[BlackElo "1210"]
[TimeControl "300"]
[EndTime "7:18:32 PDT"]
[Termination "HadesLearmonth won by checkmate"]

1. d4 {[%clk 0:04:52.8]} 1... d5 {[%clk 0:04:53.8]} 2. Nf3 {[%clk 0:04:52.6]}
2... Nf6 {[%clk 0:04:46]} 3. Nc3 {[%clk 0:04:52.2]} 3... e6 {[%clk 0:04:42.3]}
4. Bf4 {[%clk 0:04:51.9]} 4... Be7 {[%clk 0:04:35.6]} 5. Bg3 {[%clk 0:04:51.5]}
5... O-O {[%clk 0:04:34.8]} 6. Nb5 {[%clk 0:04:50.2]} 6... c6 {[%clk 0:04:30.9]}
7. Nc7 {[%clk 0:04:49.3]} 7... Bd6 {[%clk 0:04:28.5]} 8. Nxa8 {[%clk 0:04:48.3]}
8... Bxg3 {[%clk 0:04:26]} 9. hxg3 {[%clk 0:04:47.6]} 9... Nbd7 {[%clk
0:04:22.5]} 10. e3 {[%clk 0:04:47]} 10... b5 {[%clk 0:04:19.2]} 11. Qd2 {[%clk
0:04:46]} 11... Ba6 {[%clk 0:04:16.7]} 12. Kd1 {[%clk 0:04:45.1]} 12... c5
{[%clk 0:04:06.5]} 13. Qc3 {[%clk 0:04:44.7]} 13... b4 {[%clk 0:04:02.8]} 14.
Qe1 {[%clk 0:04:40.1]} 14... c4 {[%clk 0:03:58.3]} 15. Kd2 {[%clk 0:04:39.4]}
15... c3+ {[%clk 0:03:55.7]} 16. bxc3 {[%clk 0:04:37.9]} 16... Bxf1 {[%clk
0:03:54.7]} 17. Qxf1 {[%clk 0:04:35.9]} 17... bxc3+ {[%clk 0:03:53.7]} 18. Kxc3
{[%clk 0:04:33.4]} 18... Ne4+ {[%clk 0:03:52.5]} 19. Kd3 {[%clk 0:04:31.1]}
19... Qxa8 {[%clk 0:03:48]} 20. Qg1 {[%clk 0:04:24.8]} 20... Qc6 {[%clk
0:03:45.2]} 21. Ke2 {[%clk 0:04:16.2]} 21... Qxc2+ {[%clk 0:03:43.1]} 22. Ke1
{[%clk 0:04:14.5]} 22... Nc3 {[%clk 0:03:36.6]} 23. Qf1 {[%clk 0:04:09.3]} 23...
Qb2 {[%clk 0:03:31.2]} 24. Qg1 {[%clk 0:03:55.9]} 24... Qxa1+ {[%clk 0:03:29.4]}
25. Kd2 {[%clk 0:03:53.3]} 25... Qb2+ {[%clk 0:03:25.6]} 26. Kd3 {[%clk
0:03:50.8]} 26... Nxa2 {[%clk 0:03:06.9]} 27. Qh2 {[%clk 0:03:48]} 27... Qc3+
{[%clk 0:03:04.8]} 28. Ke2 {[%clk 0:03:46.3]} 28... Qc2+ {[%clk 0:02:56.9]} 29.
Ke1 {[%clk 0:03:44.1]} 29... h6 {[%clk 0:02:52.7]} 30. Ng5 {[%clk 0:03:42.1]}
30... f6 {[%clk 0:02:49.4]} 31. Nxe6 {[%clk 0:03:39.6]} 31... Rb8 {[%clk
0:02:47.3]} 32. Nxg7 {[%clk 0:03:37.9]} 32... Rb1# {[%clk 0:02:45.2]} 0-1

[Event "Live Chess"]
[Site "Chess.com"]
[Date "2023.05.21"]
[Round "-"]
[White "Ian-Morley"]
[Black "MarkCheck"]
[Result "0-1"]
[WhiteElo "1078"]
[BlackElo "1750"]
[TimeControl "300"]
[EndTime "7:18:57 PDT"]
[Termination "MarkCheck won by resignation"]

1. e4 {[%clk 0:04:58.7]} 1... c5 {[%clk 0:04:59]} 2. Nf3 {[%clk 0:04:58]} 2...
d6 {[%clk 0:04:57.5]} 3. Bb5+ {[%clk 0:04:57.7]} 3... Bd7 {[%clk 0:04:56]} 4.
Bxd7+ {[%clk 0:04:57.4]} 4... Nxd7 {[%clk 0:04:55.2]} 5. O-O {[%clk 0:04:57.1]}
5... Ngf6 {[%clk 0:04:52.7]} 6. Re1 {[%clk 0:04:56.7]} 6... Qc7 {[%clk
0:04:38.7]} 7. c3 {[%clk 0:04:56.2]} 7... c4 {[%clk 0:04:31]} 8. d4 {[%clk
0:04:55]} 8... cxd3 {[%clk 0:04:29.9]} 9. Qxd3 {[%clk 0:04:53.6]} 9... e6 {[%clk
0:04:28.3]} 10. Bg5 {[%clk 0:04:51.7]} 10... Be7 {[%clk 0:04:26.6]} 11. Bxf6
{[%clk 0:04:50.5]} 11... Nxf6 {[%clk 0:04:17.7]} 12. Nbd2 {[%clk 0:04:49.6]}
12... O-O {[%clk 0:04:13.7]} 13. Qc4 {[%clk 0:04:48.3]} 13... Qxc4 {[%clk
0:03:58.6]} 14. Nxc4 {[%clk 0:04:11]} 14... Rac8 {[%clk 0:03:56.1]} 15. Ncd2
{[%clk 0:04:04.5]} 15... d5 {[%clk 0:03:43.1]} 16. e5 {[%clk 0:04:00.4]} 16...
Nd7 {[%clk 0:03:42.2]} 17. Rac1 {[%clk 0:03:54.8]} 17... b5 {[%clk 0:03:39]} 18.
b3 {[%clk 0:03:53.8]} 18... Nc5 {[%clk 0:03:29.5]} 19. Re3 {[%clk 0:03:35.6]}
19... Rc7 {[%clk 0:03:15]} 20. b4 {[%clk 0:03:34.8]} 20... Na4 {[%clk 0:03:08]}
21. Nb1 {[%clk 0:03:27.5]} 21... Bxb4 {[%clk 0:03:05.1]} 22. a3 {[%clk
0:03:22.7]} 22... Be7 {[%clk 0:02:57.5]} 23. h3 {[%clk 0:03:19]} 23... Rfc8
{[%clk 0:02:55.6]} 24. Kh2 {[%clk 0:03:16.9]} 24... b4 {[%clk 0:02:40.6]} 25.
axb4 {[%clk 0:03:14]} 25... Bxb4 {[%clk 0:02:39.2]} 26. Nd4 {[%clk 0:03:09.2]}
26... Nxc3 {[%clk 0:02:25.4]} 27. Nxc3 {[%clk 0:03:07.7]} 27... Rxc3 {[%clk
0:02:23.6]} 28. Rcxc3 {[%clk 0:03:05.9]} 28... Rxc3 {[%clk 0:02:22.6]} 29. Rxc3
{[%clk 0:03:04.8]} 29... Bxc3 {[%clk 0:02:22.5]} 30. Nb5 {[%clk 0:03:04.3]}
30... Bxe5+ {[%clk 0:02:20.2]} 31. g3 {[%clk 0:03:01.7]} 31... a5 {[%clk
0:02:19]} 32. Na3 {[%clk 0:02:56.7]} 32... a4 {[%clk 0:02:10.5]} 33. f4 {[%clk
0:02:56]} 33... Bb2 {[%clk 0:02:08.9]} 34. Nc2 {[%clk 0:02:50.7]} 34... a3
{[%clk 0:02:07.3]} 35. Kg2 {[%clk 0:02:37.1]} 35... a2 {[%clk 0:02:04.9]} 36.
Kf3 {[%clk 0:02:34.7]} 36... a1=Q {[%clk 0:02:02.2]} 37. Nxa1 {[%clk 0:02:33.9]}
37... Bxa1 {[%clk 0:02:02.1]} 38. Ke3 {[%clk 0:02:32.9]} 38... Kf8 {[%clk
0:02:01.4]} 39. Kd3 {[%clk 0:02:31.3]} 39... Ke7 {[%clk 0:02:00.2]} 40. g4
{[%clk 0:02:30.3]} 40... Kd6 {[%clk 0:01:59.3]} 41. h4 {[%clk 0:02:30]} 41... e5
{[%clk 0:01:54.7]} 42. fxe5+ {[%clk 0:02:29.2]} 42... Kxe5 {[%clk 0:01:54.1]}
43. g5 {[%clk 0:02:28.9]} 43... Kf4 {[%clk 0:01:50]} 0-1

[Event "Live Chess"]
[Site "Chess.com"]
[Date "2023.05.21"]
[Round "-"]
[White "Alfiedog12"]
[Black "OleksiyJr1"]
[Result "0-1"]
[WhiteElo "870"]
[BlackElo "1040"]
[TimeControl "300"]
[EndTime "7:18:58 PDT"]
[Termination "OleksiyJr1 won by resignation"]

1. d4 {[%clk 0:04:58.2]} 1... Nf6 {[%clk 0:04:58.3]} 2. Nf3 {[%clk 0:04:57.8]}
2... c6 {[%clk 0:04:25.4]} 3. Bf4 {[%clk 0:04:55.5]} 3... d5 {[%clk 0:04:21.9]}
4. e3 {[%clk 0:04:54.1]} 4... e6 {[%clk 0:04:21.2]} 5. Bd3 {[%clk 0:04:52.1]}
5... Nbd7 {[%clk 0:04:20.7]} 6. Nbd2 {[%clk 0:04:51.2]} 6... Nb6 {[%clk
0:04:20]} 7. c3 {[%clk 0:04:50]} 7... Bd6 {[%clk 0:04:15.5]} 8. Bxd6 {[%clk
0:04:47.9]} 8... Qxd6 {[%clk 0:04:15.4]} 9. O-O {[%clk 0:04:46.9]} 9... c5
{[%clk 0:04:12.6]} 10. dxc5 {[%clk 0:04:42.7]} 10... Qxc5 {[%clk 0:04:12.5]} 11.
Nb3 {[%clk 0:04:36]} 11... Qd6 {[%clk 0:04:09.1]} 12. Re1 {[%clk 0:04:22.3]}
12... O-O {[%clk 0:04:07.2]} 13. a3 {[%clk 0:04:16.2]} 13... e5 {[%clk
0:04:05.4]} 14. e4 {[%clk 0:04:06.3]} 14... dxe4 {[%clk 0:04:03.2]} 15. Bxe4
{[%clk 0:04:03.8]} 15... Qxd1 {[%clk 0:04:02]} 16. Raxd1 {[%clk 0:04:00.7]}
16... Nc4 {[%clk 0:03:51.7]} 17. Rb1 {[%clk 0:03:45.1]} 17... Nxe4 {[%clk
0:03:44]} 18. Rxe4 {[%clk 0:03:41.7]} 18... b5 {[%clk 0:03:43]} 19. Ree1 {[%clk
0:03:26.3]} 19... f5 {[%clk 0:03:22.7]} 20. Nxe5 {[%clk 0:03:24.5]} 20... Nxe5
{[%clk 0:03:15]} 21. Rxe5 {[%clk 0:03:21.6]} 21... Bb7 {[%clk 0:03:13.9]} 22.
Rbe1 {[%clk 0:03:18.1]} 22... a5 {[%clk 0:03:05]} 23. Nc5 {[%clk 0:03:12.1]}
23... Bc6 {[%clk 0:02:58.7]} 24. Re6 {[%clk 0:03:04.1]} 24... Rac8 {[%clk
0:02:49]} 25. Re7 {[%clk 0:02:55]} 25... Bxg2 {[%clk 0:02:43.2]} 26. Kxg2 {[%clk
0:02:46.8]} 26... Rxc5 {[%clk 0:02:30.7]} 27. R1e5 {[%clk 0:02:39.6]} 27... Rxe5
{[%clk 0:02:25.1]} 28. Rxe5 {[%clk 0:02:38.1]} 28... Rb8 {[%clk 0:02:23]} 29.
Rxf5 {[%clk 0:02:31.6]} 29... b4 {[%clk 0:02:15.5]} 30. Rxa5 {[%clk 0:02:27]}
30... bxa3 {[%clk 0:02:12.1]} 31. Rxa3 {[%clk 0:02:20.7]} 31... Rxb2 {[%clk
0:02:07.5]} 32. c4 {[%clk 0:02:18.4]} 32... Rc2 {[%clk 0:01:45.2]} 33. Ra4
{[%clk 0:02:12.2]} 33... Kf7 {[%clk 0:01:43.9]} 34. Kf3 {[%clk 0:02:07]} 34...
Ke6 {[%clk 0:01:42.8]} 35. Ke4 {[%clk 0:02:05.4]} 35... Rxf2 {[%clk 0:01:40.4]}
36. c5 {[%clk 0:01:58.2]} 36... Rxh2 {[%clk 0:01:39.4]} 37. c6 {[%clk
0:01:55.8]} 37... Rh4+ {[%clk 0:01:38.4]} 38. Kd3 {[%clk 0:01:51.2]} 38... Rxa4
{[%clk 0:01:38.3]} 39. c7 {[%clk 0:01:49.9]} 39... Ra8 {[%clk 0:01:37.8]} 40.
Kc4 {[%clk 0:01:47.9]} 40... Rc8 {[%clk 0:01:37.4]} 0-1

[Event "Live Chess"]
[Site "Chess.com"]
[Date "2023.05.21"]
[Round "-"]
[White "Conradical12"]
[Black "JoeRoot66"]
[Result "0-1"]
[WhiteElo "1554"]
[BlackElo "1903"]
[TimeControl "300"]
[EndTime "7:18:59 PDT"]
[Termination "JoeRoot66 won by resignation"]

1. e4 {[%clk 0:04:58.3]} 1... c6 {[%clk 0:04:59.5]} 2. d4 {[%clk 0:04:56.2]}
2... d5 {[%clk 0:04:59.4]} 3. exd5 {[%clk 0:04:55.2]} 3... cxd5 {[%clk
0:04:59.3]} 4. Nf3 {[%clk 0:04:54.3]} 4... Nc6 {[%clk 0:04:59]} 5. c4 {[%clk
0:04:53]} 5... Nf6 {[%clk 0:04:58]} 6. Nc3 {[%clk 0:04:50.4]} 6... g6 {[%clk
0:04:57.2]} 7. Bf4 {[%clk 0:04:48.6]} 7... Bg7 {[%clk 0:04:56.3]} 8. Qd2 {[%clk
0:04:47.5]} 8... O-O {[%clk 0:04:55]} 9. O-O-O {[%clk 0:04:47]} 9... Bg4 {[%clk
0:04:51.6]} 10. Be2 {[%clk 0:04:45.5]} 10... Ne4 {[%clk 0:04:50.9]} 11. Nxe4
{[%clk 0:04:40]} 11... dxe4 {[%clk 0:04:50.8]} 12. Ne5 {[%clk 0:04:35.1]} 12...
Nxe5 {[%clk 0:04:45.2]} 13. Bxe5 {[%clk 0:04:33.1]} 13... Bxe2 {[%clk
0:04:41.7]} 14. Qxe2 {[%clk 0:04:31.2]} 14... Bxe5 {[%clk 0:04:40.1]} 15. dxe5
{[%clk 0:04:29.6]} 15... Qa5 {[%clk 0:04:34.9]} 16. Qxe4 {[%clk 0:04:26]} 16...
Qxa2 {[%clk 0:04:32.7]} 17. Qxb7 {[%clk 0:04:23.5]} 17... Rfc8 {[%clk
0:04:26.9]} 18. Qe4 {[%clk 0:04:10.7]} 18... Rxc4+ {[%clk 0:04:24.9]} 19. Qxc4
{[%clk 0:04:08.2]} 19... Qxc4+ {[%clk 0:04:24.8]} 0-1

[Event "Live Chess"]
[Site "Chess.com"]
[Date "2023.05.21"]
[Round "-"]
[White "Trendle"]
[Black "garyjc"]
[Result "1-0"]
[WhiteElo "2659"]
[BlackElo "1035"]
[TimeControl "300"]
[EndTime "7:19:08 PDT"]
[Termination "Trendle won by resignation"]

1. Nf3 {[%clk 0:04:58]} 1... Nf6 {[%clk 0:04:54.2]} 2. c4 {[%clk 0:04:57.3]}
2... g6 {[%clk 0:04:53.5]} 3. g3 {[%clk 0:04:56]} 3... Bg7 {[%clk 0:04:52.4]} 4.
Bg2 {[%clk 0:04:55.9]} 4... O-O {[%clk 0:04:51.1]} 5. O-O {[%clk 0:04:55.8]}
5... d6 {[%clk 0:04:50.3]} 6. Nc3 {[%clk 0:04:53.7]} 6... Nbd7 {[%clk
0:04:43.7]} 7. d4 {[%clk 0:04:51.4]} 7... Re8 {[%clk 0:04:39.5]} 8. e4 {[%clk
0:04:49.8]} 8... e5 {[%clk 0:04:37.1]} 9. h3 {[%clk 0:04:49.3]} 9... a5 {[%clk
0:04:23.9]} 10. Re1 {[%clk 0:04:47.1]} 10... c6 {[%clk 0:04:18.8]} 11. Rb1
{[%clk 0:04:42.6]} 11... Nb6 {[%clk 0:04:00.9]} 12. b3 {[%clk 0:04:33]} 12...
Rf8 {[%clk 0:03:51]} 13. Be3 {[%clk 0:04:22.7]} 13... Nfd7 {[%clk 0:03:44.7]}
14. dxe5 {[%clk 0:04:14]} 14... dxe5 {[%clk 0:03:42.4]} 15. c5 {[%clk
0:04:11.9]} 15... f5 {[%clk 0:03:19.8]} 16. cxb6 {[%clk 0:04:03.2]} 16... fxe4
{[%clk 0:03:04.6]} 17. Nxe4 {[%clk 0:04:00.2]} 17... Nf6 {[%clk 0:02:57.4]} 18.
Nfg5 {[%clk 0:03:53.9]} 18... Nxe4 {[%clk 0:02:44.2]} 19. Bxe4 {[%clk
0:03:49.8]} 19... h6 {[%clk 0:02:33.9]} 20. Nf3 {[%clk 0:03:34.2]} 20... Bxh3
{[%clk 0:02:31.2]} 21. Qc2 {[%clk 0:03:30.9]} 21... Qf6 {[%clk 0:02:11.6]} 22.
Nh4 {[%clk 0:03:27.6]} 22... g5 {[%clk 0:01:54.7]} 23. Bh7+ {[%clk 0:03:07.6]}
23... Kf7 {[%clk 0:01:45.2]} 24. Ng6 {[%clk 0:02:58.6]} 24... Qf3 {[%clk
0:01:22.6]} 25. Nxe5+ {[%clk 0:02:37]} 25... Bxe5 {[%clk 0:01:16.4]} 26. Qg6+
{[%clk 0:02:20.8]} 26... Ke7 {[%clk 0:01:07.9]} 27. Bc5+ {[%clk 0:02:20.3]}
27... Kd7 {[%clk 0:01:02.6]} 28. Rbd1+ {[%clk 0:02:07.7]} 28... Kc8 {[%clk
0:00:59.7]} 29. Qe4 {[%clk 0:02:01.1]} 29... Qxf2+ {[%clk 0:00:47.9]} 30. Bxf2
{[%clk 0:01:58.1]} 1-0

[Event "Live Chess"]
[Site "Chess.com"]
[Date "2023.05.21"]
[Round "-"]
[White "ChessClubLive"]
[Black "ameetghasi100"]
[Result "0-1"]
[WhiteElo "1660"]
[BlackElo "2586"]
[TimeControl "300"]
[EndTime "7:19:10 PDT"]
[Termination "ameetghasi100 won on time"]

1. e4 {[%clk 0:04:59.1]} 1... c5 {[%clk 0:04:59.3]} 2. Nf3 {[%clk 0:04:54.9]}
2... Nc6 {[%clk 0:04:59.2]} 3. d4 {[%clk 0:04:52.4]} 3... cxd4 {[%clk
0:04:57.7]} 4. c3 {[%clk 0:04:51.7]} 4... dxc3 {[%clk 0:04:56]} 5. Nxc3 {[%clk
0:04:51]} 5... e6 {[%clk 0:04:55.9]} 6. Bc4 {[%clk 0:04:49.3]} 6... Nf6 {[%clk
0:04:54.6]} 7. Qe2 {[%clk 0:04:43.5]} 7... a6 {[%clk 0:04:53.1]} 8. O-O {[%clk
0:04:42.2]} 8... Qc7 {[%clk 0:04:51.8]} 9. Be3 {[%clk 0:04:37.6]} 9... Ng4
{[%clk 0:04:49.3]} 10. Rac1 {[%clk 0:04:15.7]} 10... h5 {[%clk 0:04:47]} 11. h3
{[%clk 0:04:11]} 11... Nce5 {[%clk 0:04:44.1]} 12. Bf4 {[%clk 0:03:59.1]} 12...
Qxc4 {[%clk 0:04:39.7]} 13. hxg4 {[%clk 0:03:53.7]} 13... Qxe2 {[%clk
0:04:38.3]} 14. Nxe2 {[%clk 0:03:51.1]} 14... Nxg4 {[%clk 0:04:37]} 15. Rfd1
{[%clk 0:03:26.6]} 15... f6 {[%clk 0:04:32.7]} 16. Bd6 {[%clk 0:03:25.4]} 16...
Bxd6 {[%clk 0:04:30.9]} 17. Rxd6 {[%clk 0:03:24.3]} 17... Ke7 {[%clk 0:04:30.8]}
18. Rb6 {[%clk 0:02:47.9]} 18... Rd8 {[%clk 0:04:22.7]} 19. Nh4 {[%clk
0:02:39.5]} 19... g5 {[%clk 0:04:18.4]} 20. Nf3 {[%clk 0:02:21.8]} 20... d5
{[%clk 0:04:16.9]} 21. exd5 {[%clk 0:02:18.3]} 21... Rxd5 {[%clk 0:04:12.6]} 22.
Rc7+ {[%clk 0:02:10.8]} 22... Rd7 {[%clk 0:04:10.4]} 23. Rc1 {[%clk 0:01:49.4]}
23... Rd6 {[%clk 0:04:05.8]} 24. Rc7+ {[%clk 0:01:33.1]} 24... Bd7 {[%clk
0:04:03.1]} 25. Rxd6 {[%clk 0:01:29.7]} 25... Kxd6 {[%clk 0:04:03]} 26. Rxb7
{[%clk 0:01:28.5]} 26... Rc8 {[%clk 0:04:01.7]} 27. Rb6+ {[%clk 0:01:21.5]}
27... Ke7 {[%clk 0:03:59.2]} 28. Nfd4 {[%clk 0:01:08.3]} 28... e5 {[%clk
0:03:56.6]} 29. Nb3 {[%clk 0:00:55.6]} 29... Rc2 {[%clk 0:03:51.2]} 30. Ng3
{[%clk 0:00:42.9]} 30... Rxb2 {[%clk 0:03:35.3]} 31. Rxa6 {[%clk 0:00:21.1]}
31... Rb1+ {[%clk 0:03:33.1]} 32. Nf1 {[%clk 0:00:18.9]} 32... Bb5 {[%clk
0:03:32.7]} 33. Ra7+ {[%clk 0:00:13.1]} 33... Kf8 {[%clk 0:03:31.9]} 34. Nd2
{[%clk 0:00:12.2]} 34... Rd1 {[%clk 0:03:30.6]} 0-1

[Event "Live Chess"]
[Site "Chess.com"]
[Date "2023.05.21"]
[Round "-"]
[White "ProfPoisson"]
[Black "whatnot126"]
[Result "0-1"]
[WhiteElo "1218"]
[BlackElo "2069"]
[TimeControl "300"]
[EndTime "7:19:36 PDT"]
[Termination "whatnot126 won by resignation"]

1. e4 {[%clk 0:04:55.9]} 1... d6 {[%clk 0:04:59.9]} 2. d4 {[%clk 0:04:53.5]}
2... Nf6 {[%clk 0:04:59.2]} 3. Nc3 {[%clk 0:04:48.7]} 3... g6 {[%clk 0:04:58.3]}
4. Be3 {[%clk 0:04:47.2]} 4... Bg7 {[%clk 0:04:57.8]} 5. h3 {[%clk 0:04:45.4]}
5... O-O {[%clk 0:04:56.6]} 6. f4 {[%clk 0:04:44]} 6... c5 {[%clk 0:04:53.4]} 7.
Nf3 {[%clk 0:04:35.7]} 7... Qa5 {[%clk 0:04:50.7]} 8. Bd2 {[%clk 0:04:24.8]}
8... Nc6 {[%clk 0:04:46.3]} 9. Nd5 {[%clk 0:04:21.9]} 9... Qd8 {[%clk
0:04:45.4]} 10. Nxf6+ {[%clk 0:04:18.5]} 10... Bxf6 {[%clk 0:04:45.3]} 11. f5
{[%clk 0:04:13.8]} 11... Nxd4 {[%clk 0:04:42.8]} 12. Nxd4 {[%clk 0:04:11.5]}
12... Bxd4 {[%clk 0:04:42.7]} 13. fxg6 {[%clk 0:04:09.6]} 13... fxg6 {[%clk
0:04:40.4]} 14. Bc4+ {[%clk 0:04:05.3]} 14... e6 {[%clk 0:04:34.3]} 15. Bh6
{[%clk 0:04:02.5]} 15... Qh4+ {[%clk 0:04:32.6]} 16. g3 {[%clk 0:03:48.3]} 16...
Qxh6 {[%clk 0:04:28.1]} 17. Qg4 {[%clk 0:03:46.2]} 17... Qe3+ {[%clk 0:04:05.2]}
18. Be2 {[%clk 0:03:42.5]} 18... Bxb2 {[%clk 0:04:00.5]} 19. Rd1 {[%clk
0:03:31.2]} 19... Bc3+ {[%clk 0:03:56.7]} 0-1

[Event "Live Chess"]
[Site "Chess.com"]
[Date "2023.05.21"]
[Round "-"]
[White "onemoretime1975"]
[Black "wadsy27"]
[Result "0-1"]
[WhiteElo "1841"]
[BlackElo "2545"]
[TimeControl "300"]
[EndTime "7:19:38 PDT"]
[Termination "wadsy27 won on time"]

1. e4 {[%clk 0:04:55.3]} 1... c5 {[%clk 0:04:58.4]} 2. Nf3 {[%clk 0:04:53.1]}
2... e6 {[%clk 0:04:58.1]} 3. g3 {[%clk 0:04:49.5]} 3... Nc6 {[%clk 0:04:56.9]}
4. Bg2 {[%clk 0:04:47.2]} 4... Nf6 {[%clk 0:04:56.2]} 5. d3 {[%clk 0:04:46]}
5... Be7 {[%clk 0:04:55.6]} 6. c3 {[%clk 0:04:44.5]} 6... d5 {[%clk 0:04:54.3]}
7. exd5 {[%clk 0:04:42.5]} 7... exd5 {[%clk 0:04:50.9]} 8. d4 {[%clk 0:04:41.2]}
8... O-O {[%clk 0:04:48.8]} 9. O-O {[%clk 0:04:39.4]} 9... Bg4 {[%clk
0:04:46.6]} 10. dxc5 {[%clk 0:04:33.2]} 10... Bxc5 {[%clk 0:04:45.6]} 11. Bg5
{[%clk 0:04:26.5]} 11... Bb6 {[%clk 0:04:28.8]} 12. Nbd2 {[%clk 0:04:23.8]}
12... h6 {[%clk 0:04:27.3]} 13. Bxf6 {[%clk 0:04:17.7]} 13... Qxf6 {[%clk
0:04:27.2]} 14. Qb3 {[%clk 0:04:14.6]} 14... Rad8 {[%clk 0:04:22.2]} 15. h3
{[%clk 0:04:08.2]} 15... Bh5 {[%clk 0:04:17.4]} 16. Rae1 {[%clk 0:03:42.7]}
16... Bg6 {[%clk 0:04:10.4]} 17. Rd1 {[%clk 0:03:25.8]} 17... d4 {[%clk
0:03:55.1]} 18. Nc4 {[%clk 0:03:12.7]} 18... dxc3 {[%clk 0:03:38.3]} 19. bxc3
{[%clk 0:03:00.6]} 19... Na5 {[%clk 0:03:03.3]} 20. Nxa5 {[%clk 0:02:48]} 20...
Bxa5 {[%clk 0:03:03.2]} 21. Nd4 {[%clk 0:02:23.8]} 21... Bb6 {[%clk 0:02:50.6]}
22. Bxb7 {[%clk 0:02:12]} 22... Rfe8 {[%clk 0:02:39]} 23. Bg2 {[%clk 0:01:55.3]}
23... h5 {[%clk 0:02:19.5]} 24. h4 {[%clk 0:01:52.7]} 24... Bxd4 {[%clk
0:01:56.5]} 25. cxd4 {[%clk 0:01:47.6]} 25... Rxd4 {[%clk 0:01:55.6]} 26. Rxd4
{[%clk 0:01:43.5]} 26... Qxd4 {[%clk 0:01:54.7]} 27. Rd1 {[%clk 0:01:39.3]}
27... Qc5 {[%clk 0:01:53]} 28. Qd5 {[%clk 0:01:01.6]} 28... Qxd5 {[%clk
0:01:39.3]} 29. Bxd5 {[%clk 0:01:00.3]} 29... Bf5 {[%clk 0:01:20.8]} 30. Bb3
{[%clk 0:00:55.4]} 30... Bg4 {[%clk 0:01:19.3]} 31. Rc1 {[%clk 0:00:47.8]} 31...
Bf3 {[%clk 0:01:16.9]} 32. Rf1 {[%clk 0:00:40]} 32... g6 {[%clk 0:01:13.3]} 33.
Bd1 {[%clk 0:00:37.9]} 33... Bd5 {[%clk 0:01:10.3]} 34. Bb3 {[%clk 0:00:35.4]}
34... Bf3 {[%clk 0:01:09.4]} 35. Bd1 {[%clk 0:00:34]} 35... Ba8 {[%clk
0:01:06.4]} 36. Bb3 {[%clk 0:00:32.7]} 36... Re2 {[%clk 0:01:01.6]} 37. Rc1
{[%clk 0:00:29.6]} 37... Bf3 {[%clk 0:00:56.1]} 38. Kf1 {[%clk 0:00:28.2]} 38...
Rd2 {[%clk 0:00:53.4]} 39. Re1 {[%clk 0:00:25.7]} 39... Rd7 {[%clk 0:00:35.8]}
40. Re8+ {[%clk 0:00:23.8]} 40... Kg7 {[%clk 0:00:35]} 41. Re1 {[%clk
0:00:22.5]} 41... Rc7 {[%clk 0:00:34]} 42. Rb1 {[%clk 0:00:20.5]} 42... a5
{[%clk 0:00:30.9]} 43. Re1 {[%clk 0:00:19.2]} 43... Ra7 {[%clk 0:00:29.5]} 44.
Rc1 {[%clk 0:00:15.5]} 44... a4 {[%clk 0:00:28.2]} 45. Bc4 {[%clk 0:00:13.5]}
45... Rc7 {[%clk 0:00:27.1]} 46. Rc2 {[%clk 0:00:12.1]} 46... Be4 {[%clk
0:00:26]} 0-1

[Event "Live Chess"]
[Site "Chess.com"]
[Date "2023.05.21"]
[Round "-"]
[White "Singapourfeuj"]
[Black "SupremeTactician"]
[Result "0-1"]
[WhiteElo "2199"]
[BlackElo "2217"]
[TimeControl "300"]
[EndTime "7:19:44 PDT"]
[Termination "SupremeTactician won by checkmate"]

1. d4 {[%clk 0:04:56.3]} 1... Nf6 {[%clk 0:04:58.9]} 2. Nf3 {[%clk 0:04:54.7]}
2... e6 {[%clk 0:04:58.8]} 3. c4 {[%clk 0:04:52.6]} 3... d5 {[%clk 0:04:58.7]}
4. Nc3 {[%clk 0:04:50.1]} 4... b6 {[%clk 0:04:58]} 5. cxd5 {[%clk 0:04:48.2]}
5... exd5 {[%clk 0:04:57.9]} 6. Bg5 {[%clk 0:04:46.7]} 6... c6 {[%clk
0:04:57.5]} 7. e3 {[%clk 0:04:45.2]} 7... Be7 {[%clk 0:04:57.3]} 8. Qc2 {[%clk
0:04:43.3]} 8... O-O {[%clk 0:04:56.9]} 9. Bd3 {[%clk 0:04:41.6]} 9... h6 {[%clk
0:04:56.6]} 10. Bh4 {[%clk 0:04:40.1]} 10... Be6 {[%clk 0:04:55.6]} 11. O-O
{[%clk 0:04:38.7]} 11... Nbd7 {[%clk 0:04:55.5]} 12. Rae1 {[%clk 0:04:35.9]}
12... Rc8 {[%clk 0:04:55.2]} 13. h3 {[%clk 0:04:31.7]} 13... c5 {[%clk
0:04:54.1]} 14. Ne5 {[%clk 0:04:30]} 14... cxd4 {[%clk 0:04:52.3]} 15. exd4
{[%clk 0:04:28.3]} 15... Nxe5 {[%clk 0:04:49.7]} 16. dxe5 {[%clk 0:04:26.2]}
16... Nd7 {[%clk 0:04:49.4]} 17. Bg3 {[%clk 0:04:23.6]} 17... Nc5 {[%clk
0:04:46.4]} 18. f4 {[%clk 0:04:17.2]} 18... d4 {[%clk 0:04:36]} 19. Ne2 {[%clk
0:04:14.6]} 19... Nxd3 {[%clk 0:04:35.3]} 20. Qxd3 {[%clk 0:04:13.1]} 20... Bc4
{[%clk 0:04:34.7]} 21. Qd2 {[%clk 0:04:08.4]} 21... a5 {[%clk 0:04:33.7]} 22. f5
{[%clk 0:04:06.8]} 22... Bb4 {[%clk 0:04:30.2]} 23. Qf4 {[%clk 0:04:02.1]} 23...
Bxe1 {[%clk 0:04:29.1]} 24. Rxe1 {[%clk 0:04:00]} 24... Bxe2 {[%clk 0:04:28.5]}
25. Rxe2 {[%clk 0:03:59.1]} 25... d3 {[%clk 0:04:28.2]} 26. Rd2 {[%clk
0:03:58.3]} 26... Rc2 {[%clk 0:04:27.9]} 27. f6 {[%clk 0:03:56.3]} 27... Rxd2
{[%clk 0:04:23.8]} 28. Qxd2 {[%clk 0:03:55.2]} 28... Qd4+ {[%clk 0:04:20.7]} 29.
Kh2 {[%clk 0:03:52.5]} 29... Rc8 {[%clk 0:04:14.4]} 30. fxg7 {[%clk 0:03:51]}
30... Kxg7 {[%clk 0:04:13.5]} 31. Bf4 {[%clk 0:03:43.7]} 31... Qe4 {[%clk
0:04:01.9]} 32. Bxh6+ {[%clk 0:03:41.8]} 32... Kh7 {[%clk 0:04:01.1]} 33. Bg5
{[%clk 0:03:31.4]} 33... Rc2 {[%clk 0:03:57.3]} 34. Qd1 {[%clk 0:03:26.6]} 34...
Qxg2# {[%clk 0:03:55.8]} 0-1